Workbook

Sheet паспорт
A1: ПАТ "УКРТРАНСГАЗ" | J1: ПАСПОРТ ФІЗИКО-ХІМІЧНИХ ПОКАЗНИКІВ ПРИРОДНОГО ГАЗУ № 681
A2: Філія УМГ"Харківтрансгаз" | J2: переданого УМГ "ХАРКІВТРАНСГАЗ" Херсонським ЛВУМГ по ГРС Щасливцеве
A3: Херсонське ЛВУМГ | I3: та прийнятого ПАТ "Херсонгаз" по газопроводу- відводу до совхоз Азовський
A4: Вимірювальна хіміко-аналітична лабораторія | L4: МАРШРУТ №681
A5: Свідоцтво про атестацію № РЧ 161/2015 дійсне до 01.01.2019 р. | I5: за період з 01.05.2017 по 31.05.2017 ( точка відбору ГРС Щасливцеве)
A7: Число місяця | B7: Компонентний склад, мол. % | N7: Фізико-хімічні показники газу обчислені на основі компонентного складу, 101,325 кПа | X7: Температура точки роси за вологою (Р = 3.92 МПа), °С | Y7: Температура точки роси за вуглеводнями, °С | Z7: Вміст сірководню, г/м3 | AA7: Вміст меркаптанової сірки, г/м3 | AB7: Вміст механічних домішок, г/м3
N8: Густина абсолютна, кг/м3,при 20 °С, | O8: Температура вимірювання/згоряння при 20/25°С
B9: метан, С1 | C9: етан, С2 | D9: пропан, С3 | E9: ізо-бутан, і-С4 | F9: н-бутан, н-С4 | G9: нео-пентан, нео-С5 | H9: ізо-пентан, і-С5 | I9: н-пентан, н-С5 | J9: гексани та вищі, С6+ | K9: кисень, О2 | L9: азот, N2 | M9: діоксид вуглецю, CО2 | O9: Теплота згоряння нижча | R9: Теплота згоряння вища | U9: Число Воббе вище
O10: ккал/м³ | P10: МДж/м³ | Q10: кВт⋅год/м³ | R10: ккал/м³ | S10: МДж/м³ | T10: кВт⋅год/м³ | U10: ккал/м³ | V10: МДж/м³ | W10: кВт⋅год/м³
A11: 1 | O11: 7785.9942 | P11: 32.5984 | Q11: 9.0551 | R11: 8643.8092 | S11: 36.1899 | T11: 10.0528 | U11: 11493.7 | V11: 48.122 | W11: 13.3672
A12: 2 | O12: 7785.9942 | P12: 32.5984 | Q12: 9.0551 | R12: 8643.8092 | S12: 36.1899 | T12: 10.0528 | U12: 11493.7 | V12: 48.122 | W12: 13.3672
A13: 3 | B13: 97.4712 | C13: <0,1 | D13: <0,02 | E13: <0,001 | F13: <0,001 | G13: <0,001 | H13: 0.0014 | I13: <0,001 | J13: <0,001 | K13: 0.0256 | L13: 2.4366 | M13: 0.0386 | N13: 0.6811 | O13: 7786 | P13: 32.6016 | Q13: =P13/3.6 -> 9.056 | R13: 8644 | S13: 36.1934 | T13: =S13/3.6 -> 10.05372222 | U13: =V13*238.8459 -> 11495.50986 | V13: 48.1294 | W13: =V13/3.6 -> 13.36927778 | X13: * | Y13: * | Z13: <0,0001 | AA13: 0.0033 | AD13: =IF(AC13=100,"ОК"," ") -> 
A14: 4 | O14: 7786 | P14: 32.6016 | Q14: =P14/3.6 -> 9.056 | R14: 8644 | S14: 36.1934 | T14: =S14/3.6 -> 10.05372222 | U14: =V14*238.8459 -> 11495.50986 | V14: 48.1294 | W14: =V14/3.6 -> 13.36927778 | X14: * | Y14: * | AD14: =IF(AC14=100,"ОК"," ") -> 
A15: 5 | O15: 7786 | P15: 32.6016 | Q15: =P15/3.6 -> 9.056 | R15: 8644 | S15: 36.1934 | T15: =S15/3.6 -> 10.05372222 | U15: =V15*238.8459 -> 11495.50986 | V15: 48.1294 | W15: =V15/3.6 -> 13.36927778 | X15: * | Y15: *
A16: 6 | O16: 7786 | P16: 32.6016 | Q16: =P16/3.6 -> 9.056 | R16: 8644 | S16: 36.1934 | T16: =S16/3.6 -> 10.05372222 | U16: =V16*238.8459 -> 11495.50986 | V16: 48.1294 | W16: =V16/3.6 -> 13.36927778
A17: 7 | O17: 7786 | P17: 32.6016 | Q17: 9.056 | R17: 8644 | S17: 36.1934 | T17: 10.05372222 | U17: 11495.50986 | V17: 48.1294 | W17: 13.36927778
A18: 8 | O18: 7786 | P18: 32.6016 | Q18: 9.056 | R18: 8644 | S18: 36.1934 | T18: 10.05372222 | U18: 11495.50986 | V18: 48.1294 | W18: 13.36927778
A19: 9 | O19: 7786 | P19: 32.6016 | Q19: 9.056 | R19: 8644 | S19: 36.1934 | T19: 10.05372222 | U19: 11495.50986 | V19: 48.1294 | W19: 13.36927778
A20: 10 | B20: 97.4988 | C20: <0,1 | D20: <0,02 | E20: <0,001 | F20: <0,001 | G20: <0,001 | H20: 0.0014 | I20: <0,001 | J20: <0,001 | K20: 0.0255 | L20: 2.4091 | M20: 0.039 | N20: 0.681 | O20: 7789 | P20: 32.6107 | Q20: =P20/3.6 -> 9.058527778 | R20: 8647 | S20: 36.2036 | T20: =S20/3.6 -> 10.05655556 | U20: =V20*238.8459 -> 11499.85685 | V20: 48.1476 | W20: =V20/3.6 -> 13.37433333 | X20: * | Y20: *
A21: 11 | O21: 7789 | P21: 32.6107 | Q21: =P21/3.6 -> 9.058527778 | R21: 8647 | S21: 36.2036 | T21: =S21/3.6 -> 10.05655556 | U21: =V21*238.8459 -> 11499.85685 | V21: 48.1476 | W21: =V21/3.6 -> 13.37433333 | X21: * | Y21: *
A22: 12 | O22: 7789 | P22: 32.6107 | Q22: =P22/3.6 -> 9.058527778 | R22: 8647 | S22: 36.2036 | T22: =S22/3.6 -> 10.05655556 | U22: =V22*238.8459 -> 11499.85685 | V22: 48.1476 | W22: =V22/3.6 -> 13.37433333 | X22: * | Y22: *
A23: 13 | O23: 7789 | P23: 32.6107 | Q23: =P23/3.6 -> 9.058527778 | R23: 8647 | S23: 36.2036 | T23: =S23/3.6 -> 10.05655556 | U23: =V23*238.8459 -> 11499.85685 | V23: 48.1476 | W23: =V23/3.6 -> 13.37433333 | X23: * | Y23: *
A24: 14 | O24: 7789 | P24: 32.6107 | Q24: 9.058527778 | R24: 8647 | S24: 36.2036 | T24: 10.05655556 | U24: 11499.85685 | V24: 48.1476 | W24: 13.37433333
A25: 15 | O25: 7789 | P25: 32.6107 | Q25: 9.058527778 | R25: 8647 | S25: 36.2036 | T25: 10.05655556 | U25: 11499.85685 | V25: 48.1476 | W25: 13.37433333 | X25: * | Y25: *
A26: 16 | O26: 7789 | P26: 32.6107 | Q26: 9.058527778 | R26: 8647 | S26: 36.2036 | T26: 10.05655556 | U26: 11499.85685 | V26: 48.1476 | W26: 13.37433333 | X26: * | Y26: *
A27: 17 | B27: 97.4616 | C27: <0,1 | D27: <0,02 | E27: <0,001 | F27: <0,001 | G27: <0,001 | H27: 0.0014 | I27: <0,001 | J27: <0,001 | K27: 0.0237 | L27: 2.4484 | M27: 0.0372 | N27: 0.6812 | O27: 7786 | P27: 32.5992 | Q27: =P27/3.6 -> 9.055333333 | R27: 8644 | S27: 36.1908 | T27: =S27/3.6 -> 10.053 | U27: =V27*238.8459 -> 11494.31563 | V27: 48.1244 | W27: =V27/3.6 -> 13.36788889 | X27: * | Y27: * | AB27: відсут.
A28: 18 | O28: 7786 | P28: 32.5992 | Q28: =P28/3.6 -> 9.055333333 | R28: 8644 | S28: 36.1908 | T28: =S28/3.6 -> 10.053 | U28: =V28*238.8459 -> 11494.31563 | V28: 48.1244 | W28: =V28/3.6 -> 13.36788889 | X28: * | Y28: *
A29: 19 | O29: 7786 | P29: 32.5992 | Q29: =P29/3.6 -> 9.055333333 | R29: 8644 | S29: 36.1908 | T29: =S29/3.6 -> 10.053 | U29: =V29*238.8459 -> 11494.31563 | V29: 48.1244 | W29: =V29/3.6 -> 13.36788889 | X29: * | Y29: *
A30: 20 | O30: 7786 | P30: 32.5992 | Q30: =P30/3.6 -> 9.055333333 | R30: 8644 | S30: 36.1908 | T30: =S30/3.6 -> 10.053 | U30: =V30*238.8459 -> 11494.31563 | V30: 48.1244 | W30: =V30/3.6 -> 13.36788889 | AD30: =IF(AC30=100,"ОК"," ") -> 
A31: 21 | O31: 7786 | P31: 32.5992 | Q31: 9.055333333 | R31: 8644 | S31: 36.1908 | T31: 10.053 | U31: 11494.31563 | V31: 48.1244 | W31: 13.36788889
A32: 22 | O32: 7786 | P32: 32.5992 | Q32: 9.055333333 | R32: 8644 | S32: 36.1908 | T32: 10.053 | U32: 11494.31563 | V32: 48.1244 | W32: 13.36788889 | X32: * | Y32: *
A33: 23 | O33: 7786 | P33: 32.5992 | Q33: 9.055333333 | R33: 8644 | S33: 36.1908 | T33: 10.053 | U33: 11494.31563 | V33: 48.1244 | W33: 13.36788889 | X33: * | Y33: * | AD33: =IF(AC33=100,"ОК"," ") -> 
A34: 24 | O34: 7786 | P34: 32.5992 | Q34: 9.055333333 | R34: 8644 | S34: 36.1908 | T34: 10.053 | U34: 11494.31563 | V34: 48.1244 | W34: 13.36788889 | X34: * | Y34: *
A35: 25 | B35: 97.4564 | C35: <0,1 | D35: <0,02 | E35: <0,001 | F35: <0,001 | G35: <0,001 | H35: 0.0042 | I35: 0.0049 | J35: <0,001 | K35: 0.0185 | L35: 2.4292 | M35: 0.0394 | N35: 0.6814 | O35: =P35*238.8459 -> 7790.675566 | P35: 32.618 | Q35: =P35/3.6 -> 9.060555556 | R35: =S35*238.8459 -> 8644.955697 | S35: 36.1947 | T35: =S35/3.6 -> 10.05408333 | U35: =V35*238.8459 -> 11493.90959 | V35: 48.1227 | W35: =V35/3.6 -> 13.36741667 | X35: 50 | Y35: 13.5
A36: 26 | O36: =P36*238.8459 -> 7790.675566 | P36: 32.618 | Q36: =P36/3.6 -> 9.060555556 | R36: =S36*238.8459 -> 8644.955697 | S36: 36.1947 | T36: =S36/3.6 -> 10.05408333 | U36: =V36*238.8459 -> 11493.90959 | V36: 48.1227 | W36: =V36/3.6 -> 13.36741667
A37: 27 | O37: =P37*238.8459 -> 7790.675566 | P37: 32.618 | Q37: =P37/3.6 -> 9.060555556 | R37: =S37*238.8459 -> 8644.955697 | S37: 36.1947 | T37: =S37/3.6 -> 10.05408333 | U37: =V37*238.8459 -> 11493.90959 | V37: 48.1227 | W37: =V37/3.6 -> 13.36741667
A38: 28 | O38: =P38*238.8459 -> 7790.675566 | P38: 32.618 | Q38: =P38/3.6 -> 9.060555556 | R38: =S38*238.8459 -> 8644.955697 | S38: 36.1947 | T38: =S38/3.6 -> 10.05408333 | U38: =V38*238.8459 -> 11493.90959 | V38: 48.1227 | W38: =V38/3.6 -> 13.36741667
A39: 29 | O39: 7790.675566 | P39: 32.618 | Q39: 9.060555556 | R39: 8644.955697 | S39: 36.1947 | T39: 10.05408333 | U39: 11493.90959 | V39: 48.1227 | W39: 13.36741667
A40: 30 | O40: 7790.675566 | P40: 32.618 | Q40: 9.060555556 | R40: 8644.955697 | S40: 36.1947 | T40: 10.05408333 | U40: 11493.90959 | V40: 48.1227 | W40: 13.36741667
A41: 31 | B41: 97.5103 | C41: <0,1 | D41: <0,02 | E41: <0,001 | F41: <0,001 | G41: <0,001 | H41: 0.0043 | I41: 0.0049 | J41: <0,001 | K41: 0.0181 | L41: 2.3752 | M41: 0.0392 | N41: 0.6811 | O41: 7795.165869 | P41: 32.6368 | Q41: 9.065777778 | R41: 8649.923691 | S41: 36.2155 | T41: 10.05986111 | U41: 11502.74689 | V41: 48.1597 | W41: 13.37769444 | X41: 50 | Y41: 12.6
A42: Рівень одоризації відповідає чинним нормативним документам | O42: =SUMPRODUCT(O11:O41,' розрахунок'!D6:D36)/' розрахунок'!D37 -> 7787.761629 | P42: =SUMPRODUCT(P11:P41,' розрахунок'!D6:D36)/' розрахунок'!D37 -> 32.60659882 | Q42: =SUMPRODUCT(Q11:Q41,' розрахунок'!D6:D36)/' розрахунок'!D37 -> 9.05738767 | R42: =SUMPRODUCT(R11:R41,' розрахунок'!D6:D36)/' розрахунок'!D37 -> 8645.067991 | S42: =SUMPRODUCT(S11:S41,' розрахунок'!D6:D36)/' розрахунок'!D37 -> 36.19585684 | T42: =SUMPRODUCT(T11:T41,' розрахунок'!D6:D36)/' розрахунок'!D37 -> 10.05440869
H43: Середньозважене значення теплоти згоряння:
B45: * | C45: -прилад у ремонті
B47: Начальника управління Херсонського ЛВУМГ Доскоч М.В. 01.06.2017
C48: Підрозділу підприємства, якому підпорядкована лабораторія | O48: прізвище | R48: підпис | V48: дата
B49: Завідувач лабораторією Камишанова О.С. 01.06.2017
C50: Лабораторія, де здійснювалось вимірювання газу | O50: прізвище | R50: підпис | V50: дата
B51: Начальник служби метрології Скавронський Є.К. 01.06.2017
C52: Підрозділу, відповідального за облік газу за маршрутом | O52: прізвище | R52: підпис | V52: дата

Sheet розрахунок
A1: Додаток до Паспорту фізико-хімічних показників природного газу по маршруту № 681
A3: Число місяця | B3: Теплота згоряння вища, МДж/м3 | D3: Загальний обсяг газу, м3
C5: ГРС Щасливцеве
A6: 1 | B6: 36.1899 | C6: 6953 | D6: =C6 -> 6953
A7: 2 | B7: 36.1899 | C7: 6039 | D7: =C7 -> 6039
A8: 3 | B8: 36.1934 | C8: 5089 | D8: 5089
A9: 4 | B9: 36.1934 | C9: 4627 | D9: 4627
A10: 5 | B10: 36.1934 | C10: 4623 | D10: 4623
A11: 6 | B11: 36.1934 | C11: 4903 | D11: 4903
A12: 7 | B12: 36.1934 | C12: 4844 | D12: 4844
A13: 8 | B13: 36.1934 | C13: 5146 | D13: 5146
A14: 9 | B14: 36.1934 | C14: 5019 | D14: 5019
A15: 10 | B15: 36.2036 | C15: 5394 | D15: 5394
A16: 11 | B16: 36.2036 | C16: 6047 | D16: 6047
A17: 12 | B17: 36.2036 | C17: 6149 | D17: 6149
A18: 13 | B18: 36.2036 | C18: 5929 | D18: 5929
A19: 14 | B19: 36.2036 | C19: 6677 | D19: 6677
A20: 15 | B20: 36.2036 | C20: 8429 | D20: 8429
A21: 16 | B21: 36.2036 | C21: 3842 | D21: 3842
A22: 17 | B22: 36.1908 | C22: 4853 | D22: 4853
A23: 18 | B23: 36.1908 | C23: 5466 | D23: 5466
A24: 19 | B24: 36.1908 | C24: 5103 | D24: 5103
A25: 20 | B25: 36.1908 | C25: 5792 | D25: 5792
A26: 21 | B26: 36.1908 | C26: 7137 | D26: 7137
A27: 22 | B27: 36.1908 | C27: 3956 | D27: 3956
A28: 23 | B28: 36.1908 | C28: 5103 | D28: 5103
A29: 24 | B29: 36.1908 | C29: 4866 | D29: 4866
A30: 25 | B30: 36.1947 | C30: 4811 | D30: 4811
A31: 26 | B31: 36.1947 | C31: 4445 | D31: 4445
A32: 27 | B32: 36.1947 | C32: 4515 | D32: 4515
A33: 28 | B33: 36.1947 | C33: 4437 | D33: 4437
A34: 29 | B34: 36.1947 | C34: 4088 | D34: 4088
A35: 30 | B35: 36.1947 | C35: 3871 | D35: 3871
A36: 31 | B36: 36.2155 | C36: 3908 | D36: 3908
A37: Загальний обсяг газу, м3 | C37: =SUM(C6:C36) -> 162061 | D37: =SUM(D6:D36) -> 162061
A38: Енергія, МДж | C38: =SUMPRODUCT(B6:B36,C6:C36) -> 5865936.755 | D38: =SUMPRODUCT(B6:B36,D6:D36) -> 5865936.755
A39: Теплота згоряння (середньозважене значення за місяць), МДж/м³ | C39: =C38/C37 -> 36.19585684 | D39: =D38/D37 -> 36.19585684
A40: Теплота згоряння (середньозважене значення за місяць), ккал/м³ | C40: =C39*238.8459 -> 8645.232003 | D40: 8645.232003
A41: Теплота згоряння (середньозважене значення за місяць), кВт*год./м³ | C41: =C39/3.6 -> 10.05440468 | D41: 10.05440468

Sheet додаток
A1: Додаток до Паспорту фізико-хімічних показників природного газу № 681
A3: Область | B3: ГРС, прямий споживач | C3: Cередньозважене значення вищої теплоти згоряння
C4: МДж/м³ | D4: ккал/м³ | E4: кВт*год./м³
A5: Херсонська область | B5: ГРС-Щасливцеве | C5: 36.2 | D5: 8645 | E5: 10.05
A6: Середньозважене значення вищої теплоти згоряння по маршруту № 681 | C6: 36.2 | D6: 8645 | E6: 10.05
A10: Начальника управління Херсонського ЛВУМГ Доскоч М.В. | F10: 2017-06-01
A11: Підрозділу підприємства, якому підпорядкована лабораторія | D11: прізвище | E11: підпис | F11: дата
A12: Завідувач лабораторії Камишанова О.С. | F12: 2017-06-01
A13: Лабораторія, де здійснювалось вимірювання газу | D13: прізвище | E13: підпис | F13: дата
A14: Начальник служби ГВ та М Скавронський Є.К. | F14: 2017-06-01
A15: Підрозділу, відповідального за облік газу за маршрутом | D15: прізвище | E15: підпис | F15: дата

Sheet variablesList (hidden)
A1: 3 | B1: x:\gaysin | C1: 10, 11, 24, 25, 127, 128, 132, 180, 207, 215 | D1: x:\
B2: x:\Illinci
B3: x:\Talne
